[Event "*** Titled Tuesday Blitz"]
[Site "Chess.com"]
[Date "2020.10.20"]
[Round "9"]
[White "JiiHart"]
[Black "korkmaz16"]
[Result "0-1"]
[WhiteElo "2073"]
[BlackElo "2350"]
[TimeControl "180+1"]
[EndTime "11:47:44 PDT"]
[Termination "korkmaz16 won on time"]

1. e4 {[%clk 0:03:00.9]} 1... c5 {[%clk 0:02:53.7]} 2. Nf3 {[%clk 0:03:00.7]}
2... e6 {[%clk 0:02:53.2]} 3. d4 {[%clk 0:03:00.7]} 3... cxd4 {[%clk 0:02:53.2]}
4. Nxd4 {[%clk 0:03:01.3]} 4... Nf6 {[%clk 0:02:52.9]} 5. Nc3 {[%clk 0:03:01.2]}
5... Nc6 {[%clk 0:02:52.2]} 6. g3 {[%clk 0:02:59.4]} 6... Bb4 {[%clk 0:02:47.1]}
7. Bg2 {[%clk 0:02:58.3]} 7... d5 {[%clk 0:02:45.2]} 8. exd5 {[%clk 0:02:46]}
8... Nxd5 {[%clk 0:02:43.6]} 9. O-O {[%clk 0:02:45.1]} 9... Bxc3 {[%clk
0:02:22.8]} 10. Nxc6 {[%clk 0:02:35.8]} 10... bxc6 {[%clk 0:02:19.2]} 11. bxc3
{[%clk 0:02:36]} 11... Ba6 {[%clk 0:02:18.1]} 12. Re1 {[%clk 0:02:29.9]} 12...
O-O {[%clk 0:02:12.7]} 13. Qd4 {[%clk 0:02:00.3]} 13... Qa5 {[%clk 0:02:01.4]}
14. Bb2 {[%clk 0:01:50.3]} 14... c5 {[%clk 0:01:51.1]} 15. Qe5 {[%clk
0:01:47.6]} 15... c4 {[%clk 0:01:38.4]} 16. Re4 {[%clk 0:01:35.4]} 16... Rab8
{[%clk 0:01:32.4]} 17. Rg4 {[%clk 0:01:33.1]} 17... g6 {[%clk 0:01:27.6]} 18.
Bxd5 {[%clk 0:00:43.2]} 18... Qxd5 {[%clk 0:01:11.8]} 19. Qxd5 {[%clk
0:00:37.2]} 19... exd5 {[%clk 0:01:12.2]} 20. Ba3 {[%clk 0:00:37.3]} 20... Rfe8
{[%clk 0:01:08.1]} 21. Rd4 {[%clk 0:00:36]} 21... Rb5 {[%clk 0:01:02.2]} 22. Kf1
{[%clk 0:00:33.9]} 22... Bb7 {[%clk 0:00:52.6]} 23. Bc1 {[%clk 0:00:26.2]} 23...
Bc8 {[%clk 0:00:42.6]} 24. a4 {[%clk 0:00:26.2]} 24... Ra5 {[%clk 0:00:42.1]}
25. Bf4 {[%clk 0:00:22.3]} 25... Be6 {[%clk 0:00:37.9]} 26. Bc7 {[%clk
0:00:20.3]} 26... Ra6 {[%clk 0:00:37.4]} 27. a5 {[%clk 0:00:17]} 27... Rc8
{[%clk 0:00:36.8]} 28. Bf4 {[%clk 0:00:14.7]} 28... Rc5 {[%clk 0:00:36.5]} 29.
Rb1 {[%clk 0:00:10]} 29... Rcxa5 {[%clk 0:00:33.8]} 30. Bh6 {[%clk 0:00:05.2]}
30... Ra1 {[%clk 0:00:32.8]} 31. Rxa1 {[%clk 0:00:04.3]} 31... Rxa1+ {[%clk
0:00:32.3]} 32. Ke2 {[%clk 0:00:04.8]} 32... f6 {[%clk 0:00:30.5]} 33. f4 {[%clk
0:00:03.9]} 33... a5 {[%clk 0:00:28.9]} 34. Rd2 {[%clk 0:00:03.3]} 34... a4
{[%clk 0:00:28.2]} 35. Ke3 {[%clk 0:00:03.6]} 35... a3 {[%clk 0:00:27.8]} 36.
Kd4 {[%clk 0:00:03.9]} 36... a2 {[%clk 0:00:27.3]} 37. Re2 {[%clk 0:00:04.2]}
37... Kf7 {[%clk 0:00:26.6]} 38. Kc5 {[%clk 0:00:02.5]} 38... Rb1 {[%clk
0:00:20.6]} 0-1

[Event "*** Titled Tuesday Blitz"]
[Site "Chess.com"]
[Date "2020.10.20"]
[Round "9"]
[White "LittlePeasant"]
[Black "Mikhail_Golubev"]
[Result "1-0"]
[WhiteElo "2814"]
[BlackElo "2553"]
[TimeControl "180+1"]
[EndTime "11:47:45 PDT"]
[Termination "LittlePeasant won by resignation"]

1. Nf3 {[%clk 0:03:00.9]} 1... d6 {[%clk 0:02:59.6]} 2. d4 {[%clk 0:03:00.5]}
2... Nf6 {[%clk 0:02:59.4]} 3. c4 {[%clk 0:03:00.5]} 3... g6 {[%clk 0:02:58.9]}
4. Nc3 {[%clk 0:03:00.6]} 4... Bg7 {[%clk 0:02:59.6]} 5. g3 {[%clk 0:03:01.1]}
5... O-O {[%clk 0:02:59.7]} 6. Bg2 {[%clk 0:03:01.7]} 6... Nbd7 {[%clk
0:02:59.4]} 7. O-O {[%clk 0:03:01.8]} 7... e5 {[%clk 0:02:59.3]} 8. e4 {[%clk
0:03:02.4]} 8... c6 {[%clk 0:02:58.9]} 9. h3 {[%clk 0:03:02.5]} 9... exd4 {[%clk
0:02:56.7]} 10. Nxd4 {[%clk 0:03:03.4]} 10... Qb6 {[%clk 0:02:56.1]} 11. Nb3
{[%clk 0:02:18.7]} 11... Ne5 {[%clk 0:02:48.1]} 12. Qxd6 {[%clk 0:01:56.3]}
12... Nxc4 {[%clk 0:02:45.6]} 13. Qc5 {[%clk 0:01:56.8]} 13... Qxc5 {[%clk
0:02:44.9]} 14. Nxc5 {[%clk 0:01:57]} 14... Nd7 {[%clk 0:02:44.8]} 15. Nb3
{[%clk 0:01:49.9]} 15... a5 {[%clk 0:01:59.8]} 16. Rd1 {[%clk 0:01:36.2]} 16...
a4 {[%clk 0:01:55.5]} 17. Nd2 {[%clk 0:01:32.4]} 17... Nxb2 {[%clk 0:01:51]} 18.
Bxb2 {[%clk 0:01:27.8]} 18... a3 {[%clk 0:01:51.1]} 19. Nd5 {[%clk 0:01:09.1]}
19... axb2 {[%clk 0:01:42.8]} 20. Ne7+ {[%clk 0:01:09.3]} 20... Kh8 {[%clk
0:01:42.5]} 21. Rab1 {[%clk 0:01:10.2]} 21... Rxa2 {[%clk 0:01:34.9]} 22. Nc4
{[%clk 0:01:09.3]} 22... Nc5 {[%clk 0:01:31]} 23. Nxc8 {[%clk 0:00:56.6]} 23...
Rxc8 {[%clk 0:01:31.9]} 24. f4 {[%clk 0:00:57.4]} 24... Na4 {[%clk 0:01:25.7]}
25. Rd7 {[%clk 0:00:53]} 25... Nc3 {[%clk 0:01:16.1]} 26. Rxb2 {[%clk
0:00:51.2]} 26... Ne2+ {[%clk 0:01:12.2]} 27. Rxe2 {[%clk 0:00:50.4]} 27... Rxe2
{[%clk 0:01:12.7]} 28. e5 {[%clk 0:00:47.3]} 28... Ra8 {[%clk 0:01:07.6]} 29.
Bf1 {[%clk 0:00:36.2]} 29... Rc2 {[%clk 0:00:55.4]} 30. Rxb7 {[%clk 0:00:36.4]}
30... Bf8 {[%clk 0:00:51.3]} 31. Nd6 {[%clk 0:00:27.4]} 31... Ra1 {[%clk
0:00:50.2]} 32. Rxf7 {[%clk 0:00:24.9]} 32... Kg8 {[%clk 0:00:45.9]} 33. Rd7
{[%clk 0:00:20]} 33... Rcc1 {[%clk 0:00:43.9]} 34. Ne4 {[%clk 0:00:20.4]} 34...
Rxf1+ {[%clk 0:00:43.1]} 35. Kg2 {[%clk 0:00:21.3]} 35... Rg1+ {[%clk
0:00:36.1]} 36. Kf3 {[%clk 0:00:20.2]} 36... Raf1+ {[%clk 0:00:35.8]} 37. Kg4
{[%clk 0:00:20.7]} 37... Bg7 {[%clk 0:00:30.7]} 38. e6 {[%clk 0:00:21]} 38...
Re1 {[%clk 0:00:28.5]} 39. Rd8+ {[%clk 0:00:21.4]} 39... Bf8 {[%clk 0:00:25.9]}
40. e7 {[%clk 0:00:22.3]} 40... h5+ {[%clk 0:00:21.4]} 41. Kh4 {[%clk
0:00:15.5]} 41... g5+ {[%clk 0:00:19.9]} 42. Kxh5 {[%clk 0:00:14.5]} 1-0

[Event "*** Titled Tuesday Blitz"]
[Site "Chess.com"]
[Date "2020.10.20"]
[Round "9"]
[White "beto-betun"]
[Black "ScarpaChess"]
[Result "0-1"]
[WhiteElo "2194"]
[BlackElo "2365"]
[TimeControl "180+1"]
[EndTime "11:47:46 PDT"]
[Termination "ScarpaChess won by resignation"]

1. d4 {[%clk 0:03:00.9]} 1... Nf6 {[%clk 0:02:57.4]} 2. Nf3 {[%clk 0:03:01.2]}
2... d5 {[%clk 0:02:55.6]} 3. c4 {[%clk 0:02:59.7]} 3... e6 {[%clk 0:02:55.2]}
4. g3 {[%clk 0:02:59.2]} 4... Bb4+ {[%clk 0:02:53.7]} 5. Bd2 {[%clk 0:02:58.3]}
5... Bd6 {[%clk 0:02:53.5]} 6. Bg2 {[%clk 0:02:46.9]} 6... c6 {[%clk 0:02:53]}
7. O-O {[%clk 0:02:46.4]} 7... Nbd7 {[%clk 0:02:51.7]} 8. b3 {[%clk 0:02:39.7]}
8... Ne4 {[%clk 0:02:49.7]} 9. Nc3 {[%clk 0:02:38.3]} 9... Nxd2 {[%clk
0:02:37.5]} 10. Nxd2 {[%clk 0:02:38.4]} 10... O-O {[%clk 0:02:38.4]} 11. e4
{[%clk 0:02:36.8]} 11... Bb4 {[%clk 0:02:26.3]} 12. Rc1 {[%clk 0:02:32.1]} 12...
Nf6 {[%clk 0:02:19.8]} 13. a3 {[%clk 0:02:20.2]} 13... Bxa3 {[%clk 0:02:18.6]}
14. Rc2 {[%clk 0:02:18.6]} 14... Bb4 {[%clk 0:02:08.8]} 15. e5 {[%clk
0:02:17.4]} 15... Nd7 {[%clk 0:02:08.7]} 16. c5 {[%clk 0:02:12.6]} 16... b6
{[%clk 0:02:03.7]} 17. cxb6 {[%clk 0:02:10.5]} 17... axb6 {[%clk 0:02:04.6]} 18.
Na2 {[%clk 0:02:04]} 18... Bxd2 {[%clk 0:01:46.8]} 19. Qxd2 {[%clk 0:02:04.9]}
19... c5 {[%clk 0:01:45.5]} 20. Nc3 {[%clk 0:01:57.5]} 20... Ba6 {[%clk
0:01:42.1]} 21. Rfc1 {[%clk 0:01:57.2]} 21... Qe7 {[%clk 0:01:17.4]} 22. Ne2
{[%clk 0:01:54]} 22... Rfc8 {[%clk 0:01:00.9]} 23. f4 {[%clk 0:01:49.6]} 23...
Bxe2 {[%clk 0:01:00.6]} 24. Qxe2 {[%clk 0:01:48.9]} 24... Qd8 {[%clk 0:00:56.3]}
25. dxc5 {[%clk 0:01:23.7]} 25... Rxc5 {[%clk 0:00:53]} 26. Bh3 {[%clk
0:01:13.8]} 26... Rac8 {[%clk 0:00:48]} 27. b4 {[%clk 0:01:05.7]} 27... Rxc2
{[%clk 0:00:41.7]} 28. Rxc2 {[%clk 0:01:06.6]} 28... g6 {[%clk 0:00:41.5]} 29.
Bf1 {[%clk 0:00:59.6]} 29... Rc7 {[%clk 0:00:38.8]} 30. Qd3 {[%clk 0:00:54]}
30... Qc8 {[%clk 0:00:39]} 31. Rxc7 {[%clk 0:00:53]} 31... Qxc7 {[%clk
0:00:39.9]} 32. Kf2 {[%clk 0:00:53]} 32... Nb8 {[%clk 0:00:39.7]} 33. Be2 {[%clk
0:00:47.8]} 33... Kg7 {[%clk 0:00:39.9]} 34. h3 {[%clk 0:00:45.7]} 34... Qc1
{[%clk 0:00:37.7]} 35. Qb5 {[%clk 0:00:40.5]} 35... Qc6 {[%clk 0:00:33.1]} 36.
Qd3 {[%clk 0:00:39.8]} 36... Nd7 {[%clk 0:00:22.7]} 37. g4 {[%clk 0:00:39.5]}
37... Qc1 {[%clk 0:00:22]} 38. Kg3 {[%clk 0:00:34.4]} 38... g5 {[%clk
0:00:21.2]} 39. f5 {[%clk 0:00:34]} 39... Qf4+ {[%clk 0:00:20.6]} 40. Kg2 {[%clk
0:00:33.2]} 40... Nxe5 {[%clk 0:00:20.6]} 41. Qg3 {[%clk 0:00:28.7]} 41... Qxg3+
{[%clk 0:00:20.3]} 42. Kxg3 {[%clk 0:00:29.6]} 42... exf5 {[%clk 0:00:20.5]} 43.
gxf5 {[%clk 0:00:29.7]} 43... Kf6 {[%clk 0:00:21.4]} 44. Bh5 {[%clk 0:00:25.7]}
44... Kxf5 {[%clk 0:00:21.1]} 45. Be2 {[%clk 0:00:25.8]} 45... f6 {[%clk
0:00:21.2]} 46. Bd1 {[%clk 0:00:25.2]} 46... Ke4 {[%clk 0:00:21.2]} 47. Bc2+
{[%clk 0:00:25.3]} 47... Nd3 {[%clk 0:00:21.8]} 48. Bxd3+ {[%clk 0:00:24.3]}
48... Kxd3 {[%clk 0:00:21.7]} 49. h4 {[%clk 0:00:25.2]} 49... gxh4+ {[%clk
0:00:21.7]} 50. Kxh4 {[%clk 0:00:25.4]} 50... Kc2 {[%clk 0:00:21.8]} 51. b5
{[%clk 0:00:25.8]} 51... d4 {[%clk 0:00:22.7]} 52. Kg4 {[%clk 0:00:26.3]} 52...
d3 {[%clk 0:00:23.6]} 53. Kf5 {[%clk 0:00:27]} 53... d2 {[%clk 0:00:24.2]} 54.
Kxf6 {[%clk 0:00:27.9]} 54... d1=Q {[%clk 0:00:24.6]} 55. Ke6 {[%clk 0:00:28.8]}
55... h5 {[%clk 0:00:24.1]} 56. Kf7 {[%clk 0:00:29.7]} 0-1

[Event "*** Titled Tuesday Blitz"]
[Site "Chess.com"]
[Date "2020.10.20"]
[Round "9"]
[White "kidagent"]
[Black "enriquetejedor"]
[Result "0-1"]
[WhiteElo "2296"]
[BlackElo "2461"]
[TimeControl "180+1"]
[EndTime "11:47:49 PDT"]
[Termination "enriquetejedor won by resignation"]

1. e4 {[%clk 0:03:00.9]} 1... Nf6 {[%clk 0:02:37.9]} 2. Nc3 {[%clk 0:02:59.8]}
2... d6 {[%clk 0:02:36.2]} 3. d4 {[%clk 0:02:56.9]} 3... g6 {[%clk 0:02:33]} 4.
Nf3 {[%clk 0:02:56.3]} 4... Bg4 {[%clk 0:02:31.6]} 5. Be2 {[%clk 0:02:54.5]}
5... Bg7 {[%clk 0:02:23.8]} 6. h3 {[%clk 0:02:52.6]} 6... Bxf3 {[%clk
0:02:20.9]} 7. Bxf3 {[%clk 0:02:52.8]} 7... c6 {[%clk 0:02:09.5]} 8. Bg5 {[%clk
0:02:49]} 8... O-O {[%clk 0:01:57.6]} 9. Qd2 {[%clk 0:02:48.9]} 9... Nbd7 {[%clk
0:01:55.5]} 10. O-O-O {[%clk 0:02:48.1]} 10... a5 {[%clk 0:01:33]} 11. h4 {[%clk
0:02:46.3]} 11... a4 {[%clk 0:01:22.2]} 12. h5 {[%clk 0:02:44.1]} 12... a3
{[%clk 0:01:20.2]} 13. b3 {[%clk 0:02:43.4]} 13... Qa5 {[%clk 0:00:51.4]} 14.
hxg6 {[%clk 0:02:33.6]} 14... fxg6 {[%clk 0:00:47]} 15. Bh6 {[%clk 0:02:21.3]}
15... e5 {[%clk 0:00:42.2]} 16. Bxg7 {[%clk 0:02:18.4]} 16... Kxg7 {[%clk
0:00:42.9]} 17. Qh6+ {[%clk 0:01:59.2]} 17... Kg8 {[%clk 0:00:37]} 18. Ne2
{[%clk 0:02:00.1]} 18... Rf7 {[%clk 0:00:33.8]} 19. Rd3 {[%clk 0:01:49.2]} 19...
Re8 {[%clk 0:00:26.1]} 20. g4 {[%clk 0:01:42.4]} 20... exd4 {[%clk 0:00:17.3]}
21. Rxd4 {[%clk 0:01:31.8]} 21... Ne5 {[%clk 0:00:16.5]} 22. Bg2 {[%clk
0:01:24.1]} 22... Nfxg4 {[%clk 0:00:16.3]} 23. Qd2 {[%clk 0:01:18.4]} 23...
Qxd2+ {[%clk 0:00:15.6]} 24. Kxd2 {[%clk 0:01:18.7]} 24... Rxf2 {[%clk
0:00:14.6]} 25. Bh3 {[%clk 0:01:15.7]} 25... Nf3+ {[%clk 0:00:12.5]} 26. Kc3
{[%clk 0:01:09.8]} 26... Rxe2 {[%clk 0:00:11.5]} 27. Rxd6 {[%clk 0:01:00.4]}
27... R2xe4 {[%clk 0:00:09.4]} 28. Rd7 {[%clk 0:00:59.8]} 28... h5 {[%clk
0:00:03.6]} 29. Rhd1 {[%clk 0:00:56.8]} 29... Nfe5 {[%clk 0:00:03.2]} 30. Rxb7
{[%clk 0:00:56.2]} 30... Re3+ {[%clk 0:00:02.6]} 31. Kd4 {[%clk 0:00:55.9]}
31... Rd8+ {[%clk 0:00:02.2]} 32. Kc5 {[%clk 0:00:55.7]} 32... Rxd1 {[%clk
0:00:03.1]} 33. Bxg4 {[%clk 0:00:55.4]} 33... Nxg4 {[%clk 0:00:02.7]} 34. Kxc6
{[%clk 0:00:54]} 34... Rc3+ {[%clk 0:00:02.7]} 35. Kb5 {[%clk 0:00:53.8]} 35...
Rd5+ {[%clk 0:00:02.7]} 36. Kb4 {[%clk 0:00:54.2]} 36... Rxc2 {[%clk 0:00:03.6]}
37. Kxa3 {[%clk 0:00:54]} 37... Rc6 {[%clk 0:00:03.4]} 38. Ra7 {[%clk 0:00:51]}
38... Rdd6 {[%clk 0:00:03.2]} 39. Rb7 {[%clk 0:00:50.5]} 39... Ra6+ {[%clk
0:00:04.1]} 40. Kb2 {[%clk 0:00:50.6]} 40... Rdb6 {[%clk 0:00:05]} 41. Rc7
{[%clk 0:00:50.1]} 41... Rc6 {[%clk 0:00:05.2]} 42. Rd7 {[%clk 0:00:49.3]} 42...
Rd6 {[%clk 0:00:05.2]} 43. Rc7 {[%clk 0:00:49.7]} 43... h4 {[%clk 0:00:04.8]}
44. a4 {[%clk 0:00:49]} 44... h3 {[%clk 0:00:05.2]} 45. Ka3 {[%clk 0:00:48.6]}
45... h2 {[%clk 0:00:06.1]} 46. Rc1 {[%clk 0:00:47.4]} 46... Rf6 {[%clk
0:00:06.1]} 47. Rh1 {[%clk 0:00:46.8]} 47... Rf5 {[%clk 0:00:07]} 48. b4 {[%clk
0:00:46.1]} 48... Rh5 {[%clk 0:00:07.9]} 49. b5 {[%clk 0:00:46.3]} 49... Rf6
{[%clk 0:00:08.7]} 50. Kb4 {[%clk 0:00:46.1]} 50... Nf2 {[%clk 0:00:08.6]} 51.
Rc1 {[%clk 0:00:43.5]} 51... h1=Q {[%clk 0:00:08.6]} 52. Rc8+ {[%clk 0:00:44.4]}
52... Rf8 {[%clk 0:00:07.2]} 53. Ka5 {[%clk 0:00:45.3]} 53... Rxc8 {[%clk
0:00:07.1]} 0-1

[Event "*** Titled Tuesday Blitz"]
[Site "Chess.com"]
[Date "2020.10.20"]
[Round "9"]
[White "Me_ch_an"]
[Black "xberli"]
[Result "1-0"]
[WhiteElo "2398"]
[BlackElo "2551"]
[TimeControl "180+1"]
[EndTime "11:47:55 PDT"]
[Termination "Me_ch_an won by resignation"]

1. e4 {[%clk 0:03:00.9]} 1... c5 {[%clk 0:02:59]} 2. Nc3 {[%clk 0:03:00.4]} 2...
Nc6 {[%clk 0:02:57.2]} 3. g3 {[%clk 0:03:00.4]} 3... g6 {[%clk 0:02:57.1]} 4. d3
{[%clk 0:03:00.1]} 4... Bg7 {[%clk 0:02:57.5]} 5. Be3 {[%clk 0:03:00]} 5... d6
{[%clk 0:02:55.5]} 6. Bg2 {[%clk 0:03:00]} 6... e6 {[%clk 0:02:55.3]} 7. Qd2
{[%clk 0:03:00.1]} 7... Nge7 {[%clk 0:02:54.8]} 8. Bh6 {[%clk 0:03:00]} 8...
Bxh6 {[%clk 0:02:51.7]} 9. Qxh6 {[%clk 0:03:00.9]} 9... Nd4 {[%clk 0:02:50.9]}
10. Qd2 {[%clk 0:02:52.8]} 10... Rb8 {[%clk 0:02:48]} 11. Nd1 {[%clk 0:02:46.7]}
11... b5 {[%clk 0:02:37.5]} 12. c3 {[%clk 0:02:46.4]} 12... Ndc6 {[%clk
0:02:37.4]} 13. Ne2 {[%clk 0:02:46.7]} 13... b4 {[%clk 0:02:36.2]} 14. O-O
{[%clk 0:02:39.3]} 14... O-O {[%clk 0:02:34.9]} 15. Ne3 {[%clk 0:02:37.6]} 15...
f5 {[%clk 0:02:12.9]} 16. f4 {[%clk 0:02:32.4]} 16... d5 {[%clk 0:01:53.7]} 17.
exd5 {[%clk 0:02:17.4]} 17... Nxd5 {[%clk 0:01:43.8]} 18. Nxd5 {[%clk
0:02:11.9]} 18... exd5 {[%clk 0:01:44.7]} 19. d4 {[%clk 0:02:10.4]} 19... c4
{[%clk 0:01:38.1]} 20. Kh1 {[%clk 0:01:55.5]} 20... Be6 {[%clk 0:01:21]} 21. Ng1
{[%clk 0:01:55.2]} 21... Ne7 {[%clk 0:01:20.5]} 22. Rfe1 {[%clk 0:01:51.6]}
22... Bf7 {[%clk 0:01:18]} 23. Nf3 {[%clk 0:01:50.7]} 23... Nc8 {[%clk
0:01:17.6]} 24. Ne5 {[%clk 0:01:49.8]} 24... bxc3 {[%clk 0:01:14.1]} 25. bxc3
{[%clk 0:01:46.1]} 25... Rb6 {[%clk 0:01:11.5]} 26. Rab1 {[%clk 0:01:40.7]}
26... Kg7 {[%clk 0:01:09.9]} 27. Rxb6 {[%clk 0:01:37.5]} 27... axb6 {[%clk
0:01:09]} 28. Qb2 {[%clk 0:01:30.3]} 28... Bg8 {[%clk 0:01:06.5]} 29. Rb1 {[%clk
0:01:21.7]} 29... Qc7 {[%clk 0:01:03]} 30. Qb5 {[%clk 0:01:20]} 30... Nd6 {[%clk
0:00:58.9]} 31. Qxb6 {[%clk 0:01:16]} 31... Qxb6 {[%clk 0:00:57.6]} 32. Rxb6
{[%clk 0:01:16.9]} 32... Ne4 {[%clk 0:00:56.4]} 33. Bxe4 {[%clk 0:01:13.6]}
33... dxe4 {[%clk 0:00:52.5]} 34. Rb7+ {[%clk 0:01:06.4]} 34... Kh8 {[%clk
0:00:51.4]} 35. a4 {[%clk 0:01:00.1]} 35... Ra8 {[%clk 0:00:50.4]} 36. Rb4
{[%clk 0:00:59.5]} 36... Rc8 {[%clk 0:00:41.3]} 37. Kg2 {[%clk 0:00:57.7]} 37...
Kg7 {[%clk 0:00:31.4]} 38. Kf2 {[%clk 0:00:50.8]} 38... Kf6 {[%clk 0:00:31.3]}
39. Ke3 {[%clk 0:00:49.1]} 39... Ke6 {[%clk 0:00:30.5]} 40. Rxc4 {[%clk
0:00:38]} 40... Rb8 {[%clk 0:00:26.3]} 41. Rb4 {[%clk 0:00:37.4]} 41... Ra8
{[%clk 0:00:26.3]} 42. c4 {[%clk 0:00:36.7]} 42... Kd6 {[%clk 0:00:26.6]} 43. d5
{[%clk 0:00:24.6]} 43... Rc8 {[%clk 0:00:18.7]} 44. Kd4 {[%clk 0:00:23.5]} 44...
e3 {[%clk 0:00:13.4]} 45. c5+ {[%clk 0:00:20.6]} 45... Rxc5 {[%clk 0:00:11.6]}
46. Rb6+ {[%clk 0:00:20]} 46... Ke7 {[%clk 0:00:10.7]} 47. Kxc5 {[%clk
0:00:20.2]} 47... e2 {[%clk 0:00:11]} 48. Nf3 {[%clk 0:00:20.4]} 48... Bxd5
{[%clk 0:00:10.8]} 49. Kxd5 {[%clk 0:00:19.6]} 1-0

[Event "*** Titled Tuesday Blitz"]
[Site "Chess.com"]
[Date "2020.10.20"]
[Round "9"]
[White "Sibelephant"]
[Black "Msb2"]
[Result "1-0"]
[WhiteElo "3110"]
[BlackElo "2932"]
[TimeControl "180+1"]
[EndTime "11:47:57 PDT"]
[Termination "Sibelephant won by checkmate"]

1. c4 {[%clk 0:02:59.7]} 1... e5 {[%clk 0:02:58.7]} 2. Nc3 {[%clk 0:02:59.2]}
2... Bb4 {[%clk 0:02:58.6]} 3. Qc2 {[%clk 0:02:58.7]} 3... c5 {[%clk 0:02:58.1]}
4. g3 {[%clk 0:02:57.6]} 4... Ne7 {[%clk 0:02:57]} 5. Bg2 {[%clk 0:02:57.8]}
5... O-O {[%clk 0:02:55.4]} 6. e3 {[%clk 0:02:54.3]} 6... Nbc6 {[%clk
0:02:54.9]} 7. Nge2 {[%clk 0:02:54.6]} 7... d6 {[%clk 0:02:55.4]} 8. O-O {[%clk
0:02:54.8]} 8... f5 {[%clk 0:02:53.8]} 9. d3 {[%clk 0:02:47.6]} 9... Kh8 {[%clk
0:02:53.2]} 10. a3 {[%clk 0:02:44]} 10... Ba5 {[%clk 0:02:53.1]} 11. Rb1 {[%clk
0:02:43.9]} 11... Be6 {[%clk 0:02:50.7]} 12. Nd5 {[%clk 0:02:42.8]} 12... Rc8
{[%clk 0:02:37.3]} 13. Qa4 {[%clk 0:02:38.1]} 13... Bd7 {[%clk 0:02:14.3]} 14.
Nxe7 {[%clk 0:02:23.7]} 14... Nxe7 {[%clk 0:02:13.1]} 15. Qd1 {[%clk 0:02:20.1]}
15... b5 {[%clk 0:02:07.6]} 16. Bd2 {[%clk 0:02:01.1]} 16... Bb6 {[%clk
0:02:02.6]} 17. Nc3 {[%clk 0:02:01.3]} 17... bxc4 {[%clk 0:01:56.2]} 18. dxc4
{[%clk 0:02:01.5]} 18... e4 {[%clk 0:01:57.1]} 19. f3 {[%clk 0:02:00.5]} 19...
exf3 {[%clk 0:01:57.1]} 20. Bxf3 {[%clk 0:01:58.8]} 20... Ng6 {[%clk 0:01:55]}
21. Nd5 {[%clk 0:01:56.6]} 21... Ne5 {[%clk 0:01:55.4]} 22. b3 {[%clk
0:01:46.5]} 22... Be6 {[%clk 0:01:20.3]} 23. Bg2 {[%clk 0:01:45.4]} 23... Ba5
{[%clk 0:01:18]} 24. Nf4 {[%clk 0:01:05.1]} 24... Bf7 {[%clk 0:01:03.9]} 25. h3
{[%clk 0:01:05.4]} 25... Bxd2 {[%clk 0:01:01.6]} 26. Qxd2 {[%clk 0:01:05.5]}
26... Qe7 {[%clk 0:01:01.4]} 27. Rbd1 {[%clk 0:01:02.2]} 27... Rfd8 {[%clk
0:00:59.3]} 28. Qc2 {[%clk 0:01:02.4]} 28... g6 {[%clk 0:00:48.8]} 29. e4 {[%clk
0:01:00.8]} 29... fxe4 {[%clk 0:00:45]} 30. Bxe4 {[%clk 0:01:01]} 30... Rf8
{[%clk 0:00:44.3]} 31. Qc3 {[%clk 0:00:59.3]} 31... Kg8 {[%clk 0:00:41.5]} 32.
Rde1 {[%clk 0:00:52.4]} 32... Rce8 {[%clk 0:00:27.6]} 33. Kg2 {[%clk 0:00:51.6]}
33... g5 {[%clk 0:00:23.3]} 34. Nd3 {[%clk 0:00:48.8]} 34... Kh8 {[%clk
0:00:11]} 35. Bc6 {[%clk 0:00:44.7]} 35... Bg6 {[%clk 0:00:03.1]} 36. Nxe5
{[%clk 0:00:42.1]} 36... dxe5 {[%clk 0:00:03.4]} 37. Bxe8 {[%clk 0:00:42.3]}
37... Rxe8 {[%clk 0:00:04.3]} 38. Kh2 {[%clk 0:00:40.9]} 38... Kg8 {[%clk
0:00:04.5]} 39. Qe3 {[%clk 0:00:36.2]} 39... e4 {[%clk 0:00:05.2]} 40. Rd1
{[%clk 0:00:37]} 40... Rf8 {[%clk 0:00:05.7]} 41. Rxf8+ {[%clk 0:00:36.6]} 41...
Qxf8 {[%clk 0:00:06.6]} 42. Kg2 {[%clk 0:00:36.3]} 42... h6 {[%clk 0:00:06.3]}
43. Rd5 {[%clk 0:00:33.3]} 43... Qf6 {[%clk 0:00:02.8]} 44. Qf2 {[%clk
0:00:33.5]} 44... Qc3 {[%clk 0:00:02.7]} 45. Rd8+ {[%clk 0:00:28.4]} 45... Kg7
{[%clk 0:00:02.9]} 46. Qf8+ {[%clk 0:00:27.1]} 46... Kh7 {[%clk 0:00:02.9]} 47.
Qg8# {[%clk 0:00:27.4]} 1-0